bitfinex-derivatives/quotes_ETHF0:USTF0_20251210
["timestamp","ask_amount","ask_price","bid_price","bid_amount"]
[1765325427479,1.62453988,3322.3,3322.2,0.00451698]
[1765325428385,1.62453988,3322.3,3322.2,0.00781777]
[1765325433387,1.62453988,3322.3,3322.2,0.72171777]
[1765325434299,1.62453988,3322.3,3322.2,0.00781777]
[1765325434690,1.62453988,3322.3,3322.2,1.40201777]
[1765325435897,1.62453988,3322.3,3322.2,0.72171777]
[1765325437698,1.624584,3322.3,3322.2,1.40201777]
[1765325437899,0.933984,3322.3,3322.2,1.40201777]
[1765325438099,1.3751,3322.3,3322.2,1.40201777]
[1765325438299,1.624584,3322.3,3322.2,1.40201777]
[1765325438796,1.624584,3322.3,3322.2,0.72171777]
[1765325439100,1.624584,3322.3,3322.2,0.00781777]
[1765325440101,1.624584,3322.3,3322.2,1.40201777]
[1765325440699,1.624584,3322.3,3322.2,0.72171777]
[1765325442598,1.624584,3322.3,3322.2,1.40201777]
[1765325443103,0.933984,3322.3,3322.2,1.40201777]
[1765325443295,0.6845,3322.3,3322.2,1.40201777]
[1765325443598,0.00252059,3322.6,3322.5,1.8222]
[1765325443893,3.2078,3323.2,3323.0,1.97265]
[1765325443894,0.24983487,3323.1,3323.0,1.97265]
[1765325444098,3.2078,3323.7,3323.6,1.3942]
[1765325444497,3.8923,3323.7,3323.6,1.3942]
[1765325444799,4.58637676,3323.7,3323.6,1.3942]
[1765325450505,4.58637676,3323.7,3323.6,0.7139]
[1765325450901,1.3751,3323.6,3323.5,1.1419]
[1765325451495,3.21127676,3323.7,3323.2,1.23021707]
[1765325451701,3.89577676,3323.7,3323.6,0.7139]
[1765325451907,3.21127676,3323.7,3323.6,1.3942]
[1765325452208,4.58637676,3323.7,3323.6,1.3942]
[1765325452603,3.89577676,3323.7,3323.6,1.3942]
[1765325452803,4.58637676,3323.7,3323.6,1.3942]
[1765325453410,4.58637676,3323.7,3323.6,0.7139]
[1765325453908,1.3769,3323.5,3323.4,0.15043]
[1765325454104,3.21127676,3323.7,3323.4,0.7091]
[1765325454408,1.3769,3323.5,3323.4,1.4046]
[1765325455008,3.21127676,3323.7,3323.6,1.4046]
[1765325455606,0.00347676,3323.7,3323.6,1.4046]
[1765325455801,0.00347676,3323.7,3323.6,1.55502]
[1765325459812,1.38037676,3323.7,3323.6,1.55502]
[1765325460014,1.38037676,3323.7,3323.6,0.85952]
[1765325460211,1.38037676,3323.7,3323.6,1.55502]
[1765325461208,1.38037676,3323.7,3323.6,1.4046]
[1765325461515,1.3769,3323.0,3322.9,2.48437707]
[1765325461715,1.3769,3323.0,3322.9,1.4046]
[1765325462009,1.3769,3322.8,3322.7,5.69217707]
[1765325462214,1.3769,3322.8,3322.7,4.99667707]
[1765325462404,1.3769,3322.8,3322.7,5.69217707]
[1765325463004,1.3769,3322.8,3322.7,4.6124]
[1765325463307,1.3769,3322.8,3322.7,5.69217707]
[1765325463507,1.3769,3322.8,3322.7,4.6124]
[1765325463709,3.2078,3323.4,3322.7,4.6124]
[1765325464014,1.3769,3323.1,3323.0,1.8124]
[1765325464602,4.5847,3323.4,3323.3,0.7091]
[1765325464802,1.3769,3323.1,3323.0,1.8124]
[1765325467509,1.3769,3323.1,3323.0,0.7091]
[1765325467715,1.3769,3323.1,3323.0,1.4046]
[1765325468615,1.3769,3323.1,3323.0,1.8124]
[1765325468810,1.3769,3323.1,3323.0,1.4046]
[1765325469007,1.3769,3323.1,3323.0,0.7091]
[1765325469213,1.3769,3323.1,3323.0,1.4046]
[1765325469617,1.3769,3323.1,3323.0,1.8124]
[1765325470115,1.3769,3323.1,3323.0,2.88884255]
[1765325471406,1.3769,3323.1,3323.0,1.8124]
[1765325471611,1.3769,3323.1,3323.0,1.78852142]
[1765325471820,1.3769,3323.1,3323.0,1.07942142]
[1765325472010,1.3769,3323.1,3323.0,1.4743]
[1765325472819,0.00347676,3323.7,3323.6,1.4743]
[1765325472820,1.39537676,3323.7,3323.6,1.4743]
[1765325473020,1.64477673,3323.7,3323.6,1.4743]
[1765325473218,1.3919,3323.6,3323.5,1.1408]
[1765325473416,1.64129997,3323.6,3323.5,1.1408]
[1765325473612,1.64129997,3323.6,3323.5,0.7377]
[1765325474323,1.3919,3323.4,3323.3,2.55433954]
[1765325474514,1.64129997,3323.4,3323.3,2.55433954]
[1765325474917,1.64129997,3323.4,3323.3,1.08003954]
[1765325475115,1.64129997,3323.4,3323.3,2.55433954]
[1765325477026,1.64129997,3323.4,3323.3,1.08003954]
[1765325478620,4.84909997,3323.4,3323.3,1.08003954]
[1765325478825,1.3919,3323.3,3323.2,1.08003954]
[1765325479131,1.64129997,3323.3,3323.2,1.08003954]
[1765325480020,1.3919,3323.2,3323.1,1.08003954]
[1765325480223,1.3919,3322.9,3322.8,1.08003954]
[1765325480523,1.3919,3322.9,3322.2,0.00781777]
[1765325480524,1.3919,3322.3,3322.2,3.10265123]
[1765325480719,3.2078,3322.9,3322.2,2.77306453]
[1765325480921,3.2078,3322.9,3322.8,3.84629625]
[1765325481120,3.45741022,3322.9,3322.8,3.84629625]
[1765325481729,0.24961022,3322.9,3322.8,3.84629625]
[1765325481920,1.3919,3323.1,3323.0,1.8774]
[1765325482126,1.64151022,3323.1,3323.0,1.8774]
[1765325482930,1.64151022,3323.1,3323.0,2.95817509]
[1765325483327,0.24961022,3323.1,3323.0,1.8774]
[1765325483530,1.3883,3323.6,3323.5,1.8295]
[1765325483726,1.63791022,3323.6,3323.5,1.8295]
[1765325487433,1.63791022,3323.6,3323.5,2.91002117]
[1765325487630,1.63791022,3323.6,3323.5,1.8295]
[1765325487832,1.63791022,3323.6,3323.4,1.08052117]
[1765325488033,1.63791022,3323.5,3323.4,2.49962117]
[1765325488234,1.63791022,3323.5,3323.4,1.4191]
[1765325491437,1.63791022,3323.5,3323.4,0.6978]
[1765325493345,1.3883,3323.3,3323.2,5.91784676]
[1765325493641,1.63791022,3323.3,3323.2,5.91784676]
[1765325493841,0.24961022,3323.3,3323.2,5.91784676]
[1765325494044,0.7125,3323.3,3323.2,5.91784676]
[1765325494741,0.00347676,3323.7,3323.4,1.4191]
[1765325494742,0.24961022,3323.5,3323.4,1.4191]
[1765325494945,1.39177676,3323.7,3323.6,1.4191]
[1765325495146,1.64138698,3323.7,3323.6,2.50062902]
[1765325495440,1.64138698,3323.7,3323.6,1.77932902]
[1765325495832,1.3883,3323.6,3323.5,2.18972902]
[1765325496036,1.63791022,3323.6,3323.5,1.08152902]
[1765325496245,1.63791022,3323.6,3323.5,2.91102902]
[1765325496541,0.96211022,3323.6,3323.5,2.91102902]
[1765325497140,0.7125,3323.6,3323.5,2.91102902]
[1765325497539,1.3883,3323.6,3323.5,2.91102902]
[1765325497737,1.63791022,3323.6,3323.5,2.91102902]
[1765325498744,0.24961022,3323.6,3323.5,3.12044676]
[1765325498942,0.00347676,3323.7,3323.6,1.4191]
[1765325499144,0.71597676,3323.7,3323.6,2.50050971]
[1765325500643,0.00347676,3323.7,3323.6,2.50050971]
[1765325501046,0.00347676,3323.7,3323.6,4.6269]
[1765325501245,0.00451698,3323.9,3323.8,1.4191]
[1765325501448,0.00451698,3323.9,3323.8,1.56951]
[1765325502344,0.00711084,3323.9,3323.8,1.56951]
[1765325504341,0.24961022,3324.6,3324.5,1.8295]
[1765325504546,4.5961,3325.1,3325.0,1.4191]
[1765325504740,4.16998046,3325.1,3325.0,3.12044676]
[1765325504940,3.45748046,3325.1,3325.0,3.12044676]
[1765325505341,3.45970079,3325.1,3325.0,3.12290048]
[1765325505557,0.25190079,3325.1,3325.0,3.12290048]
[1765325505860,1.39052033,3325.1,3325.0,3.12290048]
[1765325506067,0.25190079,3325.1,3325.0,3.12290048]
[1765325506365,0.00222033,3325.1,3325.0,3.12290048]
[1765325508263,1.39052033,3325.1,3325.0,0.00245372]
[1765325508868,1.39052033,3325.1,3325.0,0.70025372]
[1765325509167,0.71472033,3325.1,3325.0,1.83195372]
[1765325509365,0.00222033,3325.1,3325.0,1.83195372]
[1765325509773,0.00222033,3325.1,3325.0,1.98231372]
[1765325509963,0.71472033,3325.1,3325.0,3.05782333]
[1765325510164,1.39052033,3325.1,3325.0,3.05782333]
[1765325510363,0.71472033,3325.1,3325.0,3.05782333]
[1765325510664,0.00222033,3325.1,3325.0,3.05782333]
[1765325511164,0.71472033,3325.1,3325.0,1.98231372]
[1765325511359,1.39052033,3325.1,3325.0,0.15281372]
[1765325511564,1.39052033,3325.1,3325.0,0.70025372]
[1765325511871,1.39052033,3325.1,3325.0,1.83195372]
[1765325512266,0.71472033,3325.1,3325.0,1.83195372]
[1765325512473,0.00222033,3325.1,3325.0,3.14499956]
[1765325512876,0.00222033,3325.1,3325.0,1.83195372]
[1765325513070,0.71472033,3325.1,3325.0,1.83195372]
[1765325513574,0.00222033,3325.1,3325.0,1.83195372]
[1765325514363,0.69212033,3325.1,3325.0,1.83195372]
[1765325514970,0.00222033,3325.1,3325.0,1.83195372]
[1765325516477,1.43272033,3325.1,3325.0,0.00245372]
[1765325517064,1.43272033,3325.1,3325.0,0.70765372]
[1765325517268,0.69212033,3325.1,3325.0,1.83945372]
[1765325517468,1.43272033,3325.1,3325.0,1.83945372]
[1765325518973,0.00222033,3325.1,3325.0,1.83945372]
[1765325519871,0.69212033,3325.1,3325.0,1.83945372]
[1765325520273,0.00222033,3325.1,3325.0,1.83945372]
[1765325524279,0.00222033,3325.1,3325.0,3.30285956]
[1765325524475,0.00222033,3325.1,3325.0,1.98981372]
[1765325528378,0.00222033,3325.1,3325.0,3.06532333]
[1765325530082,0.00222033,3325.1,3325.0,3.30285956]
[1765325531082,0.00222033,3325.1,3325.0,4.92339302]
[1765325531484,0.00222033,3325.1,3325.0,3.30285956]
[1765325531884,0.00451698,3325.4,3325.3,1.4722]
[1765325532187,0.00451698,3325.4,3325.3,1.62255]
[1765325533191,0.00769253,3325.4,3325.3,1.62255]
[1765325535888,0.00769253,3325.4,3325.3,3.2412207]
[1765325536588,0.74539253,3325.4,3325.3,1.62255]
[1765325536893,1.4214,3325.1,3325.0,0.00245372]
[1765325537192,1.67120249,3325.1,3325.0,0.00245372]
[1765325538590,0.98750249,3325.1,3325.0,1.87985372]
[1765325539090,1.67890001,3325.4,3325.3,1.4722]
[1765325539590,1.4214,3325.2,3325.1,1.80912311]
[1765325539792,1.4214,3325.1,3325.0,1.08237683]
[1765325539992,1.67120748,3325.1,3325.0,1.08237683]
[1765325540295,1.67120748,3325.1,3325.0,1.81157683]
[1765325540994,1.67120748,3325.1,3325.0,2.55457683]
[1765325542998,1.67120748,3325.1,3325.0,1.81157683]
[1765325543192,1.67120748,3325.1,3325.0,1.08237683]
[1765325544601,1.67120748,3325.1,3325.0,1.81327683]
[1765325544797,1.67120748,3325.1,3325.0,2.49117683]
[1765325545789,0.98750748,3325.1,3325.0,2.92317683]
[1765325545994,0.25748839,3325.4,3325.3,1.4088]
[1765325546196,1.39399253,3325.4,3325.3,1.4088]
[1765325546502,1.64378839,3325.4,3325.3,1.4088]
[1765325548196,0.94188839,3325.4,3325.3,1.4088]
[1765325548794,1.39399253,3325.4,3325.3,1.4088]
[1765325549004,1.64382112,3325.4,3325.3,1.4088]
[1765325549504,0.94192112,3325.4,3325.3,1.4088]
[1765325549703,0.69209253,3325.4,3325.3,1.4088]
[1765325550499,0.00769253,3325.4,3325.3,1.4088]
[1765325550698,0.00769253,3325.4,3325.3,4.6166]
[1765325552008,0.00769253,3325.4,3325.3,4.76695]
[1765325552202,0.69209253,3325.4,3325.3,4.76695]
[1765325552403,1.3863,3325.1,3325.0,1.84325372]
[1765325552806,1.39399253,3325.4,3325.3,1.4088]
[1765325553005,1.64380187,3325.4,3325.3,1.4088]
[1765325553207,0.25750187,3325.4,3325.3,1.4088]
[1765325553404,0.00769253,3325.4,3325.3,1.4088]
[1765325554608,0.00769253,3325.4,3325.3,4.6166]
[1765325555803,0.69209253,3325.4,3325.3,4.6166]
[1765325557412,0.00769253,3325.4,3325.3,4.6166]
[1765325558111,0.69209253,3325.4,3325.3,4.6166]
[1765325558503,0.00769253,3325.4,3325.3,4.6166]
[1765325558909,0.00769253,3325.4,3325.3,4.76695]
[1765325559115,0.00769253,3325.4,3325.3,6.3856207]
[1765325559813,6.62471119,3327.2,3326.4,1.4088]
[1765325559814,3.2078,3326.5,3326.4,1.4088]
[1765325560116,4.84388704,3326.5,3326.4,1.4088]
[1765325560411,3.45758704,3326.5,3326.4,2.48841974]
[1765325560606,0.25253813,3326.5,3326.4,2.48841974]
[1765325560815,0.00275109,3326.5,3326.4,1.4088]
[1765325563212,0.00275109,3326.5,3326.4,2.48560762]
[1765325563413,0.00275109,3326.5,3326.4,1.4088]
[1765325563817,0.00275109,3326.5,3326.4,2.48560547]
[1765325564020,0.00275109,3326.5,3326.4,1.4088]
[1765325564214,0.00275109,3326.5,3326.4,2.4855268]
[1765325566222,0.00275109,3326.5,3326.4,1.4088]
[1765325566818,3.8922,3327.3,3327.2,1.4088]
[1765325567013,4.14117537,3327.3,3327.2,1.4088]
[1765325567217,3.2078,3327.3,3327.2,1.4088]
[1765325567418,4.1410856,3327.3,3327.2,1.4088]
[1765325567721,4.8429856,3327.3,3327.2,1.4088]
[1765325567918,4.1449458,3327.3,3327.2,1.4088]
[1765325568318,3.8960602,3327.3,3327.2,1.4088]
[1765325568816,4.5979602,3327.3,3327.2,0.7309]
[1765325569012,4.5979602,3327.3,3327.2,1.4088]
[1765325569212,4.5979602,3327.3,3326.8,1.31304584]
[1765325569420,4.52084584,3326.9,3326.1,0.73540978]
[1765325569617,0.24874621,3326.8,3326.5,0.432]
[1765325569922,0.15026,3327.1,3327.0,0.432]
[1765325570513,3.35806,3327.1,3327.0,0.432]
[1765325570716,9.60681488,3327.1,3327.0,0.432]
[1765325570911,3.45655488,3327.1,3327.0,0.432]
[1765325571919,3.45655488,3327.1,3327.0,3.12955871]
[1765325572225,3.2078,3327.1,3327.0,3.12955871]
[1765325572624,3.2078,3327.1,3327.0,1.8408]
[1765325587530,3.07741942,3327.1,3327.0,1.99107]
[1765325587730,1.62359578,3329.6,3328.5,0.424]
[1765325587925,0.24942455,3329.5,3328.7,0.00450978]
[1765325588130,41.04942455,3329.4,3328.7,0.00450978]
[1765325588328,0.24942455,3329.3,3328.7,0.00450978]
[1765325588731,3.2078,3328.8,3328.7,0.00708943]
[1765325588936,3.45722455,3328.8,3328.0,0.424]
[1765325589229,6.00276439,3329.3,3328.0,0.424]
[1765325589230,3.2078,3328.4,3328.0,0.424]
[1765325589435,0.24942455,3328.3,3328.0,0.424]
[1765325590031,0.24942455,3328.3,3328.0,0.42655353]
[1765325590540,0.24942455,3328.3,3328.0,1.16815353]
[1765325590833,0.24942455,3328.3,3328.0,1.89425353]
[1765325591237,0.24942455,3328.3,3328.0,0.42655353]
[1765325593344,0.24942455,3328.3,3328.0,1.16815353]
[1765325594044,0.24942455,3328.3,3328.0,0.42655353]
[1765325594943,0.24942455,3328.3,3328.0,1.16815353]
[1765325595142,0.24942455,3328.3,3328.0,1.89425353]
[1765325595841,0.24942455,3328.3,3328.0,1.16815353]
[1765325596134,0.24942455,3328.3,3328.0,0.42655353]
[1765325596337,0.39963455,3328.3,3328.0,0.42655353]
[1765325598647,1.28812363,3328.1,3328.0,0.42655353]
[1765325598845,1.53754818,3328.1,3328.0,0.42655353]
[1765325600452,0.24942455,3328.1,3328.0,0.42655353]
[1765325600750,0.39963455,3328.3,3328.0,0.42655353]
[1765325601143,0.39963455,3328.3,3328.2,0.7416]
[1765325601340,0.39963455,3328.3,3328.0,0.42655353]
[1765325602557,0.39963455,3328.3,3328.0,1.16815353]
[1765325602853,0.39963455,3328.3,3328.0,1.89425353]
[1765325603041,0.24942455,3328.3,3328.2,1.4771]
[1765325604754,0.24942455,3328.3,3328.2,2.55470903]
[1765325605154,0.24942455,3328.3,3328.2,1.4771]
[1765325608549,3.2078,3328.4,3328.3,1.4155]
[1765325608750,3.4575365,3328.4,3328.0,0.42655353]
[1765325608950,0.2497365,3328.3,3328.0,0.42655353]
[1765325609353,1.62359578,3329.4,3328.3,0.88571]
[1765325609558,0.93092691,3329.3,3329.2,1.4155]
[1765325609860,1.35336439,3329.3,3329.2,0.68]
[1765325610455,1.35336439,3329.3,3329.2,1.4155]
[1765325610755,0.00276439,3329.3,3329.2,1.4155]
[1765325611268,1.35336439,3329.3,3329.2,0.68]
[1765325611558,1.35336439,3329.3,3329.0,3.6431]
[1765325611559,1.3506,3329.1,3329.0,4.6233]
[1765325611953,1.3506,3329.1,3328.5,2.01841565]
[1765325611954,1.3506,3328.6,3328.5,3.2078]
[1765325612747,1.3506,3328.6,3328.5,4.6233]
[1765325612953,1.3506,3328.6,3328.5,5.0586]
[1765325613861,1.35336439,3329.3,3329.2,0.68]
[1765325614057,1.35336439,3329.3,3329.2,1.4155]
[1765325614558,1.35336439,3329.3,3328.5,3.6431]
[1765325615154,0.6784,3328.6,3328.5,5.0586]
[1765325615850,0.00276439,3329.3,3328.5,5.0586]
[1765325616052,0.00276439,3329.3,3328.5,6.13660979]
[1765325616252,0.68116439,3329.3,3329.2,0.68]
[1765325616460,1.35336439,3329.3,3329.2,1.4155]
[1765325617260,0.00276439,3329.3,3329.2,1.4155]
[1765325618454,0.68116439,3329.3,3329.2,1.4155]
[1765325618650,1.35336439,3329.3,3329.2,1.4155]
[1765325620864,1.35336439,3329.3,3329.2,0.68]
[1765325621065,1.3506,3329.1,3329.0,1.8508]
[1765325621958,1.3506,3329.1,3329.0,1.4155]
[1765325622961,1.35336439,3329.3,3329.2,1.4155]
[1765325623158,1.60070785,3329.3,3329.2,1.4155]
[1765325623861,1.3506,3329.1,3329.0,0.68]
[1765325624062,1.3506,3329.1,3329.0,1.4155]
[1765325625367,1.3506,3328.7,3328.6,3.8878]
[1765325625670,1.3506,3328.7,3328.6,4.6233]
[1765325625856,0.6784,3329.0,3328.9,1.4155]
[1765325626055,1.3506,3328.7,3328.6,4.6233]
[1765325626260,1.3506,3328.7,3328.6,3.8878]
[1765325626669,1.3506,3328.4,3328.3,1.75800979]
[1765325626857,1.3506,3328.4,3328.3,0.68]
[1765325627163,1.3506,3328.4,3328.3,1.4155]
[1765325627356,1.3506,3328.4,3328.3,0.68]
[1765325627560,1.3506,3328.4,3328.3,1.4155]
[1765325628353,1.3506,3328.3,3328.2,3.8878]
[1765325628560,1.3506,3328.3,3328.2,4.6233]
[1765325628755,1.3506,3328.3,3328.2,3.2078]
[1765325629154,1.3506,3328.3,3328.2,4.6233]
[1765325630966,0.6784,3328.3,3328.2,4.6233]
[1765325633564,1.3506,3328.3,3328.2,4.6233]
[1765325634366,1.59823148,3328.3,3328.2,4.6233]
[1765325635574,1.428,3328.1,3328.0,1.79316332]
[1765325635872,1.67563148,3328.1,3328.0,0.71515353]
[1765325636772,1.67563148,3328.1,3328.0,0.00255353]
[1765325637372,1.67563148,3328.1,3328.0,1.45515353]
[1765325637576,1.67563148,3328.1,3328.0,0.00255353]
[1765325637769,1.67563148,3328.1,3328.0,0.71515353]
[1765325638274,1.67563148,3328.1,3328.0,0.00255353]
[1765325638477,0.24763148,3328.1,3328.0,1.88565353]
[1765325638675,1.428,3328.1,3328.0,0.00255353]
[1765325638879,1.67563148,3328.1,3328.0,0.00255353]
[1765325640077,1.6753946,3328.1,3328.0,0.00255353]
[1765325641582,1.6753946,3328.1,3328.0,0.71515353]
[1765325641973,1.6753946,3328.1,3328.0,1.45515353]
[1765325642170,1.6753946,3328.1,3328.0,0.71515353]
[1765325642374,1.6753946,3328.1,3328.0,0.00255353]
[1765325644070,1.6753946,3328.1,3328.0,0.71515353]
[1765325644981,1.6753946,3328.1,3328.0,0.00255353]
[1765325645382,1.6753946,3328.1,3328.0,0.71515353]
[1765325645578,1.6753946,3328.1,3328.0,0.00255353]
[1765325647882,1.6753946,3328.1,3328.0,0.71695353]
[1765325648481,1.6753946,3328.1,3328.0,0.00255353]
[1765325648783,1.6753946,3328.1,3328.0,1.45335353]
[1765325649472,1.7098946,3328.1,3328.0,0.00255353]
[1765325649678,1.8601146,3328.1,3328.0,0.00255353]
[1765325649878,1.4247,3326.8,3326.6,3.2078]
[1765325650077,1.4247,3326.7,3326.6,3.9222]
[1765325650378,0.6968,3327.0,3326.9,1.4508]
[1765325650581,0.6968,3326.7,3326.6,4.6586]
[1765325650783,0.00280266,3326.7,3326.6,4.66134316]
[1765325651786,0.69960266,3326.7,3326.6,4.66134316]
[1765325652180,0.00280266,3326.7,3326.6,4.66134316]
[1765325653585,0.00280266,3326.7,3326.6,10.66134316]
[1765325654787,0.00280266,3326.7,3326.6,4.66134316]
[1765325656988,0.00450977,3327.0,3326.9,1.4508]
[1765325658183,1.43196627,3327.0,3326.8,1.07679671]
[1765325658388,1.4247,3326.7,3326.6,1.45354316]
[1765325659098,1.4247,3326.7,3326.6,0.71714316]
[1765325660091,1.4247,3326.7,3326.6,1.45354316]
[1765325660891,4.6325,3326.9,3326.8,1.4508]
[1765325661087,4.15147347,3326.9,3326.8,1.4508]
[1765325662186,4.87937347,3326.9,3326.8,1.4508]
[1765325664391,1.4578,3326.7,3326.6,0.00274316]
[1765325664595,0.7226,3326.7,3326.6,1.40064316]
[1765325664798,7.0428,3326.9,3326.8,1.3979]
[1765325664799,7.7654,3326.9,3326.8,1.3979]
[1765325664994,8.74755424,3326.9,3326.8,1.3979]
[1765325665794,8.74755424,3326.9,3326.8,0.6874]
[1765325666201,1.4578,3326.7,3326.6,0.69014316]
[1765325666796,1.4578,3326.7,3326.6,1.40064316]
[1765325667599,1.4578,3326.7,3326.6,0.69014316]
[1765325667904,1.70479339,3326.7,3326.6,0.69014316]
[1765325669006,1.70479339,3326.7,3326.6,1.40064316]
[1765325673619,3.2078,3326.9,3326.8,1.3979]
[1765325673812,3.45486795,3326.9,3326.8,1.3979]
[1765325674017,4.17746795,3326.9,3326.8,1.3979]
[1765325674315,4.91266795,3326.9,3326.8,1.3979]
[1765325676124,1.70486795,3326.9,3326.8,1.3979]
[1765325677812,0.96966795,3326.9,3326.8,1.3979]
[1765325678012,0.72986627,3327.0,3326.9,1.3979]
[1765325678419,1.46506627,3327.0,3326.9,1.3979]
[1765325678721,1.71239103,3327.0,3326.9,1.3979]
[1765325679422,1.71239103,3327.0,3326.9,0.6874]
[1765325679726,2.10719103,3327.0,3326.9,0.6874]
[1765325682927,0.97719103,3327.0,3326.9,1.3979]
[1765325683127,0.72986627,3327.0,3326.9,1.3979]
[1765325683435,1.46506627,3327.0,3326.9,1.3979]
[1765325683726,1.71239103,3327.0,3326.9,0.6874]
[1765325684129,1.4578,3326.8,3326.7,2.47469671]
[1765325684329,1.70512476,3326.8,3326.7,2.47469671]
[1765325687630,1.70512476,3326.8,3326.7,1.76419671]
[1765325687826,1.4578,3326.7,3326.6,0.00274316]
[1765325688130,1.70512476,3326.7,3326.6,0.69014316]
[1765325688427,0.1503,3326.4,3326.3,9.78e-06]
[1765325688627,0.15031,3326.0,3324.9,3.2078]
[1765325688928,3.2078,3325.5,3324.9,3.2078]
[1765325689130,0.8834015,3325.4,3324.9,3.2078]
[1765325689332,1.31173561,3325.2,3324.9,3.2078]
[1765325689527,1.31173561,3325.2,3325.0,0.00364223]
[1765325689528,0.8834015,3325.1,3325.0,0.00364223]
[1765325689722,0.8834015,3325.1,3325.0,0.44874223]
[1765325689924,0.8834015,3325.1,3325.0,1.13614223]
[1765325690321,0.24732476,3325.4,3325.0,1.13614223]
[1765325690527,0.8814253,3325.4,3325.0,1.13614223]
[1765325690828,0.8814253,3325.4,3325.0,1.84664223]
[1765325691131,0.8814253,3325.4,3325.0,0.44874223]
[1765325692034,0.8814253,3325.4,3325.0,1.13614223]
[1765325692534,0.8814253,3325.4,3325.0,1.84664223]
[1765325693033,0.8814253,3325.4,3325.0,1.13614223]
[1765325693534,3.2078,3325.1,3325.0,0.00364223]
[1765325695133,3.2078,3325.1,3325.0,1.86014223]
[1765325695430,3.2078,3325.1,3325.0,0.41814223]
[1765325697635,3.2078,3325.1,3325.0,1.86014223]
[1765325699230,3.2078,3325.1,3325.0,0.41814223]
[1765325699426,3.2078,3325.1,3325.0,0.00364223]
[1765325700435,3.2078,3325.1,3325.0,0.41814223]
[1765325701139,3.2078,3325.1,3325.0,0.00364223]
[1765325701543,3.2078,3325.1,3324.8,0.00450978]
[1765325701544,3.60380545,3325.1,3324.8,0.00450978]
[1765325701730,0.24563532,3325.0,3324.8,0.00450978]
[1765325702040,0.24563532,3325.0,3324.0,3.6529]
[1765325702041,0.15037,3324.9,3324.0,3.6529]
[1765325702242,3.2078,3324.5,3324.0,3.6529]
[1765325702538,3.2111798,3324.5,3324.0,3.65615776]
[1765325702725,3.2111798,3324.5,3324.0,0.44835776]
[1765325702933,3.2111798,3324.5,3324.0,0.00325776]
[1765325703937,3.2078,3324.1,3324.0,0.00325776]
[1765325706938,15.1068,3324.1,3324.0,0.00325776]
[1765325708840,15.1068,3324.1,3324.0,0.40935776]
[1765325709547,15.1068,3324.1,3323.9,0.00450978]
[1765325710550,40.8,3324.0,3323.9,0.00821391]
[1765325710851,42.09159971,3324.0,3323.9,0.00821391]
[1765325711854,40.8,3324.0,3323.9,0.00821391]
[1765325712148,61.28119942,3324.0,3323.0,1.0979]
[1765325712350,4.49939971,3323.1,3323.0,0.4145]
[1765325712650,4.49939971,3323.1,3322.3,3.2078]
[1765325712851,0.7682,3322.4,3322.3,3.2078]
[1765325713042,0.7682,3322.4,3322.3,3.21079924]
[1765325713450,0.7682,3322.4,3322.3,3.89419924]
[1765325713748,0.7682,3322.4,3322.3,0.68639924]
[1765325714141,0.7682,3322.4,3322.3,0.00299924]
[1765325715348,0.3841,3322.1,3322.0,1.76860978]
[1765325716343,0.38684352,3322.1,3322.0,1.77116571]
[1765325717049,0.77094352,3322.1,3322.0,1.77116571]
[1765325717744,0.38684352,3322.1,3322.0,1.77116571]
[1765325718049,0.77094352,3322.1,3322.0,0.41316571]
[1765325719247,0.77094352,3322.1,3322.0,1.09656571]
[1765325719950,0.38684352,3322.1,3322.0,1.77116571]
[1765325720245,0.00274352,3322.1,3322.0,1.77116571]
[1765325721348,3.98590978,3322.7,3322.6,1.358]
[1765325721747,3.59910978,3322.7,3322.6,1.358]
[1765325721949,3.98590978,3322.7,3322.6,1.358]
[1765325722246,3.98966452,3322.7,3322.6,1.358]
[1765325722448,3.21606452,3322.7,3322.6,1.358]
[1765325726249,3.60286452,3322.7,3322.6,1.358]
[1765325726653,3.98856452,3322.7,3322.6,0.6834]
[1765325726855,0.7714,3322.6,3322.5,1.093]
[1765325727056,0.3857,3322.6,3322.5,1.7912]
[1765325727243,3.21606452,3322.7,3322.6,1.3851]
[1765325730054,3.98746452,3322.7,3322.6,1.3851]
[1765325730250,0.7714,3322.6,3322.5,0.4061]
[1765325730452,0.7714,3322.6,3322.0,0.41316571]
[1765325730453,0.7714,3322.1,3322.0,1.79826571]
[1765325730755,0.3857,3322.1,3322.0,1.79826571]
[1765325730962,0.7714,3322.1,3322.0,0.41316571]
[1765325731257,0.7714,3321.6,3321.5,4.999]
[1765325731457,0.7714,3321.6,3321.5,0.4061]
[1765325731659,0.7714,3321.6,3321.5,1.093]
[1765325731853,0.7714,3321.6,3321.5,1.7912]
[1765325732255,0.7714,3321.6,3321.5,0.00356692]
[1765325732256,3.9792,3321.6,3321.5,0.00356692]
[1765325732462,4.86498471,3321.6,3321.5,0.00356692]
[1765325732959,4.86498471,3321.6,3321.5,0.44076692]
[1765325733361,4.86498471,3321.6,3321.5,0.00356692]
[1765325734060,4.86498471,3321.6,3321.5,0.44076692]
[1765325734663,4.86498471,3321.6,3321.5,1.82586692]
[1765325734859,4.86498471,3321.6,3321.5,0.44076692]
[1765325735064,4.86498471,3321.6,3321.5,1.12766692]
[1765325735763,4.86489132,3321.6,3321.5,1.12766692]
[1765325736258,4.86489132,3321.6,3321.5,1.82586692]
[1765325737063,4.47919132,3321.6,3321.5,1.82586692]
[1765325737264,4.09349132,3321.6,3321.5,1.82586692]
[1765325737566,4.47919132,3321.6,3321.5,1.82586692]
[1765325738264,1.27139132,3321.6,3321.5,1.82586692]
[1765325738466,0.63138561,3321.6,3321.5,1.82586692]
[1765325738664,0.7714,3321.6,3321.5,1.82586692]
[1765325739370,1.27161024,3321.6,3321.5,1.82586692]
[1765325739763,0.63138561,3321.6,3321.5,1.82586692]
[1765325740066,0.24568561,3321.8,3321.7,1.3851]
[1765325740267,0.88591024,3321.9,3321.8,1.3851]
[1765325740970,1.27161024,3321.9,3321.8,1.3851]
[1765325742672,1.65731024,3321.9,3321.8,1.3851]
[1765325743463,1.27161024,3321.9,3321.8,1.3851]
[1765325743868,0.88591024,3321.9,3321.8,1.3851]
[1765325746176,0.64022463,3321.9,3321.8,1.3851]
[1765325746379,3.5935,3322.0,3321.9,1.3851]
[1765325746675,4.48112499,3322.0,3321.9,1.3851]
[1765325746875,4.09542499,3322.0,3321.9,1.3851]
[1765325747078,3.45411839,3322.0,3321.9,1.3851]